[Event "43rd Blackpool Chess Conference 2019"]
[Site "Blackpool"]
[Date "2019.03.09"]
[Round "3.1"]
[White "McPhillips, Joseph"]
[Black "Molano Lafuente, Ismael"]
[Result "1-0"]
[ECO "B07"]
[WhiteElo "2407"]
[BlackElo "1956"]
[Annotator "ChessBase"]
[PlyCount "89"]
[EventDate "2019.03.08"]
[EventType "swiss"]
[EventCountry "ENG"]
[SourceTitle "playchess.com"]
[Source "ChessBase"]
[SourceQuality "1"]
[TimeControl "6600+10"]

1. e4 {[%emt 0:00:00]} d6 {[%emt 0:05:24]} 2. d4 {[%emt 0:00:01]} Nf6 {[%emt 0:00:53]} 3. f3 {[%emt 0:00:29]} e5 {[%emt 0:00:18]} 4. Ne2 {[%emt 0:07:11]} Be7 {[%emt 0:00:35]} 5. Be3 {[%emt 0:00:36]} c6 {[%emt 0:00:30]} 6. Qd2 {[%emt 0:00:50]} Nbd7 {[%emt 0:01:01]} 7. Nbc3 {[%emt 0:14:56]} Qa5 {[%emt 0:05:46]} 8. g4 {[%emt 0:04:05]} b5 {[%emt 0:09:46]} 9. g5 {[%emt 0:05:29]} Nh5 {[%emt 0:01:12]} 10. d5 {[%emt 0:02:26]} c5 {[%emt 0:03:59]} 11. Ng3 {[%emt 0:00:21]} Nxg3 {[%emt 0:01:04]} 12. hxg3 {[%emt 0:00:03]} a6 {[%emt 0:03:32]} 13. f4 {[%emt 0:01:59]} Bb7 {[%emt 0:06:03]} 14. Bh3 {[%emt 0:05:12]} f6 {[%emt 0:07:09]} 15. Bxd7+ {[%emt 0:19:02]} Kxd7 {[%emt 0:00:02]} 16. f5 {[%emt 0:00:17]} Rag8 {[%emt 0:04:15]} 17. g4 {[%emt 0:02:46]} Qd8 {[%emt 0:01:04]} 18. gxf6 {[%emt 0:00:24]} gxf6 {[%emt 0:00:26]} 19. Rh4 {[%emt 0:00:30]} Qe8 {[%emt 0:02:05]} 20. Qh2 {[%emt 0:02:50]} Rg7 {[%emt 0:02:30]} 21. O-O-O {[%emt 0:00:42]} Qg8 {[%emt 0:00:52]} 22. Qh3 {[%emt 0:01:06]} Kd8 {[%emt 0:04:55]} 23. Rh1 {[%emt 0:00:26]} Bc8 {[%emt 0:04:58]} 24. Ne2 {[%emt 0:00:40]} Bd7 {[%emt 0:00:08]} 25. Bh6 {[%emt 0:00:22]} Rf7 {[%emt 0:00:26]} 26. Qa3 {[%emt 0:00:11]} Bc8 {[%emt 0:01:36]} 27. Rg1 {[%emt 0:00:43]} Ke8 {[%emt 0:02:49]} 28. Qe3 {[%emt 0:00:56]} Bf8 {[%emt 0:01:27]} 29. g5 {[%emt 0:01:19]} Bxh6 {[%emt 0:01:57]} 30. Rxh6 {[%emt 0:03:06]} Qf8 {[%emt 0:01:12]} 31. Qh3 {[%emt 0:00:28]} fxg5 {[%emt 0:09:27]} 32. Rxg5 {[%emt 0:00:04]} Kd7 {[%emt 0:01:33]} 33. Rgg6 {[%emt 0:09:00]} Kc7 {[%emt 0:06:54]} 34. Rxd6 {[%emt 0:00:27]} Qxd6 {[%emt 0:05:02]} 35. Rxd6 {[%emt 0:00:09]} Kxd6 {[%emt 0:00:03]} 36. Qh6+ {[%emt 0:00:10]} Kc7 {[%emt 0:00:21]} 37. Qc6+ {[%emt 0:00:36]} Kd8 {[%emt 0:00:21]} 38. Qd6+ {[%emt 0:00:13]} Bd7 {[%emt 0:01:29]} 39. Qb8+ {[%emt 0:01:01]} Bc8 {[%emt 0:00:15]} 40. Qd6+ {[%emt 0:00:08]} Bd7 {[%emt 0:00:09]} 41. Qb8+ {[%emt 0:00:06]} Bc8 {[%emt 0:00:07]} 42. Qxe5 {[%emt 0:00:06]} Re8 {[%emt 0:01:34]} 43. Qd6+ {[%emt 0:00:19]} Rd7 {[%emt 0:00:21]} 44. Qb6+ {[%emt 0:01:00]} Ke7 {[%emt 0:00:34]} 45. Nf4 {[%emt 0:01:43]} 1-0

[Event "43rd Blackpool Chess Conference 2019"]
[Site "Blackpool"]
[Date "2019.03.09"]
[Round "3.2"]
[White "White, Stuart A"]
[Black "Quillan, Gary"]
[Result "*"]
[ECO "A43"]
[WhiteElo "2108"]
[BlackElo "2353"]
[Annotator "NA"]
[PlyCount "70"]
[EventDate "2019.03.08"]
[EventType "swiss"]
[EventCountry "ENG"]
[SourceTitle "playchess.com"]
[Source "ChessBase"]
[SourceQuality "1"]
[TimeControl "6600+10"]

1. e4 {[%emt 1:50:10]} g6 {[%emt 1:50:10]} 2. d4 {[%emt 0:00:10]} Bg7 {[%emt 0:00:10]} 3. Nc3 {[%emt 0:00:10]} c5 {[%emt 0:00:10]} 4. d5 {[%emt 0:00:10]} d6 {[%emt 0:00:10]} 5. f4 {[%emt 0:00:10]} Bxc3+ {[%emt 0:00:10]} 6. bxc3 {[%emt 0:00:10]} Nf6 {[%emt 0:00:10]} 7. Bb5+ {[%emt 0:00:10]} Bd7 {[%emt 0:00:10]} 8. Bxd7+ {[%emt 0:00:10]} Nbxd7 {[%emt 0:00:10]} 9. Qf3 {[%emt 0:00:10]} Qa5 {[%emt 0:00:10]} 10. Ne2 {[%emt 0:00:10]} Qa4 {[%emt 0:00:10]} 11. Ng3 {[%emt 0:00:10]} Qc4 {[%emt 0:00:10]} 12. Kf2 {[%emt 0:00:10]} h5 {[%emt 0:00:10]} 13. Re1 {[%emt 0:00:10]} g5 {[%emt 0:00:10]} 14. Qd3 {[%emt 0:00:10]} Qxd3 {[%emt 0:00:10]} 15. cxd3 {[%emt 0:00:10]} gxf4 {[%emt 0:00:10]} 16. Bxf4 {[%emt 0:00:10]} Ng4+ {[%emt 0:00:10]} 17. Kg1 {[%emt 0:00:10]} Nge5 {[%emt 0:00:10]} 18. Re3 {[%emt 0:00:10]} Ng4 {[%emt 0:00:10]} 19. Re2 {[%emt 0:00:10]} Nge5 {[%emt 0:00:10]} 20. d4 {[%emt 0:00:10]} cxd4 {[%emt 0:00:10]} 21. cxd4 {[%emt 0:00:10]} Ng6 {[%emt 0:00:10]} 22. Bg5 {[%emt 0:00:10]} f6 {[%emt 0:00:10]} 23. Be3 {[%emt 0:00:10]} Rc8 {[%emt 0:00:10]} 24. Rb1 {[%emt 0:00:10]} Rc7 {[%emt 0:00:10]} 25. Reb2 {[%emt 0:00:10]} Nb6 {[%emt 0:00:10]} 26. Nf5 {[%emt 0:00:10]} Kd7 {[%emt 0:00:10]} 27. Ng7 {[%emt 0:00:10]} Rhc8 {[%emt 0:00:10]} 28. Ne6 {[%emt 0:00:10]} Rc3 {[%emt 0:00:10]} 29. Bd2 {[%emt 0:00:10]} R3c4 {[%emt 0:00:10]} 30. h3 Nf8 {[%emt 0:00:10]} 31. Nxf8+ Rxf8 32. Ba5 Rxd4 33. Bxb6 axb6 34. Rxb6 {[%emt 0:00:50]} Rxe4 {[%emt 0:00:40]} 35. Rxb7+ {[%emt 0:00:10]} Ke8 {[%emt 0:00:10]} *

[Event "43rd Blackpool Chess Conference 2019"]
[Site "Blackpool"]
[Date "2019.03.09"]
[Round "3.3"]
[White "Hebden, Mark L"]
[Black "Phillips, David A"]
[Result "1-0"]
[ECO "A43"]
[WhiteElo "2417"]
[BlackElo "2040"]
[Annotator "RC"]
[PlyCount "85"]
[EventDate "2019.03.08"]
[EventType "swiss"]
[EventCountry "ENG"]
[SourceTitle "playchess.com"]
[Source "ChessBase"]
[SourceQuality "1"]
[TimeControl "6600+10"]

1. d4 {[%emt 0:00:00]} Nf6 {[%emt 0:04:40]} 2. Nf3 {[%emt 0:00:02]} c5 {[%emt 0:01:31]} 3. d5 {[%emt 0:00:08]} d6 {[%emt 0:00:04]} 4. Nc3 {[%emt 0:00:12]} g6 {[%emt 0:00:44]} 5. e4 {[%emt 0:00:09]} Bg7 {[%emt 0:02:02]} 6. Be2 {[%emt 0:00:31]} O-O {[%emt 0:00:45]} 7. O-O {[%emt 0:00:08]} Bg4 {[%emt 0:00:03]} 8. a4 {[%emt 0:01:47]} Bxf3 {[%emt 0:02:13]} 9. Bxf3 {[%emt 0:00:09]} Na6 {[%emt 0:00:06]} 10. Re1 {[%emt 0:01:23]} Nd7 {[%emt 0:00:41]} 11. Bg5 {[%emt 0:01:07]} Re8 {[%emt 0:00:40]} 12. Qd2 {[%emt 0:00:33]} Nc7 {[%emt 0:06:54]} 13. Be2 {[%emt 0:01:22]} a6 {[%emt 0:00:54]} 14. a5 {[%emt 0:00:40]} b5 {[%emt 0:04:44]} 15. axb6 {[%emt 0:00:20]} Nxb6 {[%emt 1:26:29]} 16. Ra2 {[%emt 0:00:59]} Qd7 {[%emt 0:00:00]} 17. Rea1 {[%emt 0:02:28]} Nb5 {[%emt 0:00:00]} 18. Nd1 {[%emt 0:05:46]} Nd4 {[%emt 0:00:00]} 19. Rxa6 {[%emt 0:01:49]} h6 {[%emt 0:00:00]} 20. Be3 {[%emt 0:01:12]} Rxa6 {[%emt 0:00:00]} 21. Rxa6 {[%emt 0:00:46]} Nxe2+ {[%emt 0:00:00]} 22. Qxe2 {[%emt 0:00:11]} Rb8 {[%emt 0:00:00]} 23. b3 {[%emt 0:05:33]} Nc8 {[%emt 0:00:00]} 24. Bd2 {[%emt 0:01:18]} Na7 {[%emt 0:00:00]} 25. Bc3 {[%emt 0:02:34]} Nb5 {[%emt 0:00:00]} 26. Bxg7 {[%emt 0:00:11]} Kxg7 {[%emt 0:00:00]} 27. Ne3 {[%emt 0:00:24]} Qb7 {[%emt 0:00:00]} 28. Ra1 {[%emt 0:01:16]} Nd4 {[%emt 0:00:00]} 29. Qd1 {[%emt 0:02:46]} Qb4 {[%emt 0:00:00]} 30. Qd3 {[%emt 0:01:38]} Rb7 {[%emt 0:00:00]} 31. Kf1 {[%emt 0:01:48]} h5 {[%emt 0:00:00]} 32. Nc4 {[%emt 0:03:17]} Qb5 {[%emt 0:00:00]} 33. Kg1 {[%emt 0:00:56]} f6 {[%emt 0:00:00]} 34. h3 {[%emt 0:00:17]} Qd7 {[%emt 0:00:00]} 35. Kh2 {[%emt 0:01:57]} Rb8 {[%emt 0:00:00]} 36. Qd2 {[%emt 0:00:35]} Rb7 {[%emt 0:00:00]} 37. Ne3 {[%emt 0:05:29]} Rb8 {[%emt 0:00:00]} 38. Ra4 {[%emt 0:01:50]} Rb7 {[%emt 0:00:00]} 39. Rc4 {[%emt 0:00:58]} e5 {[%emt 0:00:00]} 40. Ra4 {[%emt 0:01:23]} Ra7 {[%emt 0:00:00]} 41. Rxa7 {[%emt 0:03:32]} Qxa7 {[%emt 0:00:00]} 42. Nc4 {[%emt 0:00:16]} Qa6 {[%emt 0:00:00]} 43. f4 {[%emt 0:00:31]} 1-0

[Event "43rd Blackpool Chess Conference 2019"]
[Site "Blackpool"]
[Date "2019.03.09"]
[Round "3.4"]
[White "Fallowfield, Jeremy R"]
[Black "Milson, Samuel A"]
[Result "1/2-1/2"]
[ECO "D17"]
[WhiteElo "2134"]
[BlackElo "2096"]
[Annotator "NA"]
[PlyCount "53"]
[EventDate "2019.03.08"]
[EventType "swiss"]
[EventCountry "ENG"]
[SourceTitle "playchess.com"]
[Source "ChessBase"]
[SourceQuality "1"]
[TimeControl "6600+10"]

1. d4 {[%emt 0:03:13]} d5 {[%emt 0:00:00]} 2. c4 {[%emt 0:00:14]} c6 {[%emt 0:00:05]} 3. Nf3 {[%emt 0:00:51]} Nf6 {[%emt 0:00:09]} 4. Nc3 {[%emt 0:00:15]} dxc4 {[%emt 0:00:14]} 5. a4 {[%emt 0:00:46]} Bf5 {[%emt 0:00:09]} 6. Nh4 {[%emt 0:02:29]} Bg6 {[%emt 0:02:51]} 7. Nxg6 {[%emt 0:00:36]} hxg6 {[%emt 0:00:07]} 8. e4 {[%emt 0:00:10]} e5 {[%emt 0:02:28]} 9. Be3 {[%emt 0:04:11]} Bb4 {[%emt 0:01:22]} 10. f3 {[%emt 0:02:30]} b5 {[%emt 0:10:26]} 11. axb5 {[%emt 0:03:03]} cxb5 {[%emt 0:00:16]} 12. dxe5 {[%emt 0:00:49]} Qxd1+ {[%emt 0:00:24]} 13. Kxd1 {[%emt 0:00:32]} Bxc3 {[%emt 0:00:18]} 14. bxc3 {[%emt 0:00:23]} Nfd7 {[%emt 0:00:09]} 15. e6 {[%emt 0:05:03]} fxe6 {[%emt 0:00:36]} 16. Rxa7 {[%emt 0:01:56]} Rxa7 {[%emt 0:00:07]} 17. Bxa7 {[%emt 0:00:05]} Nc6 {[%emt 0:00:06]} 18. Be3 {[%emt 0:00:40]} Ke7 {[%emt 0:02:19]} 19. Kc2 {[%emt 0:01:57]} Ra8 {[%emt 0:04:04]} 20. Kb2 {[%emt 0:01:24]} Na5 {[%emt 0:10:29]} 21. Be2 {[%emt 0:01:44]} Nb3 {[%emt 0:00:34]} 22. Bd1 {[%emt 0:01:48]} Nbc5 {[%emt 0:04:21]} 23. Bc2 {[%emt 0:04:07]} Kd6 {[%emt 0:03:36]} 24. f4 {[%emt 0:11:22]} Na4+ {[%emt 0:02:23]} 25. Bxa4 {[%emt 0:02:30]} Rxa4 {[%emt 0:00:16]} 26. Rd1+ {[%emt 0:01:06]} Ke7 {[%emt 0:01:20]} 27. Bd4 {[%emt 0:02:15]} 1/2-1/2

[Event "43rd Blackpool Chess Conference 2019"]
[Site "Blackpool"]
[Date "2019.03.09"]
[Round "3.5"]
[White "Tarr, Steve F"]
[Black "Ellames, Roy"]
[Result "0-1"]
[ECO "D02"]
[WhiteElo "1680"]
[BlackElo "2035"]
[Annotator "NA RC"]
[PlyCount "74"]
[EventDate "2019.03.08"]
[EventType "swiss"]
[EventCountry "ENG"]
[SourceTitle "playchess.com"]
[Source "ChessBase"]
[SourceQuality "1"]
[TimeControl "6600+10"]

1. d4 {[%emt 0:01:36]} e6 {[%emt 0:01:30]} 2. Nf3 {[%emt 0:01:10]} Nf6 {[%emt 0:01:08]} 3. Bf4 {[%emt 0:00:48]} d5 {[%emt 0:00:13]} 4. e3 {[%emt 0:01:27]} Bd6 {[%emt 0:00:26]} 5. Bg3 {[%emt 0:00:43]} O-O {[%emt 0:00:17]} 6. Bd3 {[%emt 0:02:11]} b6 {[%emt 0:05:09]} 7. Ne5 {[%emt 0:11:37] D02: 1 d4 d5 2 Nf3 sidelines, including 2...Nf6 3 g3 and 2...Nf6 3 Bf4} (7. Nbd2 Bb7 8. Bh4 Nbd7 9. O-O c5 10. c3 Qb8 11. Qb1 a5 12. Re1 h6 13. a4 Bc6 14. Bg3 Bxg3 15. hxg3 {½-½ (87) Demidov,M (2520)-Van Foreest,J (2614) St Petersburg 2018}) 7... c5 {[%emt 0:02:25]} 8. c3 {[%emt 0:00:50]} Bb7 {[%emt 0:01:12]} 9. Bh4 {[%emt 0:11:25]} Be7 {[%emt 0:04:23]} 10. Nd2 {[%emt 0:11:55]} Ne4 {[%emt 0:10:07]} 11. Bg3 $146 {[%emt 0:06:53]} ({Predecessor:} 11. Bxe7 Qxe7 12. O-O f6 13. Nef3 Nxd2 14. Nxd2 {0-1 (58) Zschaebitz,K (2086)-Federau,J (2220) Berlin 2005}) 11... f6 {[%emt 0:09:18]} 12. Nef3 {[%emt 0:06:05]} Nd7 {[%emt 0:05:14]} 13. Qc2 {[%emt 0:02:04]} f5 {[%emt 0:01:41]} 14. Ne5 {[%emt 0:09:26]} a6 {[%emt 0:22:47]} 15. Nxd7 {[%emt 0:06:13]} Qxd7 {[%emt 0:01:35]} 16. Be5 {[%emt 0:02:58]} Bc6 {[%emt 0:18:09]} 17. Nf3 {[%emt 0:06:50]} Bb5 {[%emt 0:03:24]} 18. O-O {[%emt 0:04:12]} Bxd3 {[%emt 0:00:41]} 19. Qxd3 {[%emt 0:00:14]} c4 {[%emt 0:00:25]} 20. Qc2 {[%emt 0:01:51]} b5 {[%emt 0:01:34]} 21. Nd2 {[%emt 0:01:18]} a5 {[%emt 0:04:54]} 22. a3 {[%emt 0:05:18]} Nf6 {[%emt 0:03:24]} 23. f3 {[%emt 0:01:46]} Qb7 {[%emt 0:02:00]} 24. Rae1 {[%emt 0:02:33]} g6 {[%emt 0:05:17]} 25. Re2 {[%emt 0:05:14]} Ra6 {[%emt 0:01:06]} 26. Ref2 {[%emt 0:02:33]} Nd7 {[%emt 0:00:35]} 27. f4 {[%emt 0:01:14]} b4 {[%emt 0:00:36]} 28. axb4 {[%emt 0:01:27]} axb4 {[%emt 0:00:02]} 29. cxb4 {[%emt 0:00:30]} Qxb4 {[%emt 0:00:42]} 30. Qd1 $2 {[%emt 0:01:29]} (30. Nb1 $17) 30... Nxe5 {[%emt 0:01:27]} 31. fxe5 {[%emt 0:00:23]} Bg5 {[%emt 0:00:57]} 32. Re2 {[%emt 0:00:41]} Ra2 {[%emt 0:00:56]} 33. Nf3 {[%emt 0:00:12]} Bh6 {[%emt 0:00:17]} 34. Qd2 $2 {[%emt 0:00:13]} (34. Qe1 {is a better chance.} Qxe1 35. Rfxe1) 34... Qxd2 {[%emt 0:00:15]} 35. Nxd2 {[%emt 0:00:08]} Rxb2 {[%emt 0:00:04]} 36. Kh1 $19 {[%emt 0:00:12]} c3 {[%emt 0:00:10]} 37. Rb1 {[%emt 0:00:31]} Ra8 {[%emt 0:01:50]} 0-1

[Event "43rd Blackpool Chess Conference 2019"]
[Site "Blackpool"]
[Date "2019.03.09"]
[Round "3.7"]
[White "Gayson, Peter M"]
[Black "Watson, Phil R"]
[Result "1/2-1/2"]
[ECO "B12"]
[WhiteElo "2121"]
[BlackElo "2132"]
[Annotator "NA"]
[PlyCount "36"]
[EventDate "2019.03.08"]
[EventType "swiss"]
[EventCountry "ENG"]
[SourceTitle "playchess.com"]
[Source "ChessBase"]
[SourceQuality "1"]
[TimeControl "6600+10"]

1. e4 {[%emt 0:15:06]} c6 {[%emt 0:00:08]} 2. d4 {[%emt 0:00:10]} d5 {[%emt 0:00:07]} 3. e5 {[%emt 0:00:19]} Bf5 {[%emt 0:00:11]} 4. Nf3 {[%emt 0:00:14]} e6 {[%emt 0:00:08]} 5. Be2 {[%emt 0:00:27]} h6 {[%emt 0:00:29]} 6. O-O {[%emt 0:00:28]} Ne7 {[%emt 0:01:03]} 7. b3 {[%emt 0:01:18]} Ng6 {[%emt 0:00:55]} 8. c4 {[%emt 0:00:32]} Nh4 {[%emt 0:06:04]} 9. Nc3 {[%emt 0:03:40]} Bb4 {[%emt 0:02:36]} 10. Bb2 {[%emt 0:06:15]} O-O {[%emt 0:01:37]} 11. Rc1 {[%emt 0:11:00]} Bg4 {[%emt 0:07:09]} 12. Nxh4 {[%emt 0:04:02]} Bxe2 {[%emt 0:00:15]} 13. Qxe2 {[%emt 0:03:03]} Qxh4 {[%emt 0:01:08]} 14. cxd5 {[%emt 0:06:40]} cxd5 {[%emt 0:18:17]} 15. a3 {[%emt 0:22:55]} Bxc3 {[%emt 0:01:30]} 16. Rxc3 {[%emt 0:07:50]} Nc6 {[%emt 0:04:35]} 17. Rh3 {[%emt 0:00:57]} Qf4 {[%emt 0:05:46]} 18. Rd1 {[%emt 0:04:49]} Rac8 {[%emt 0:05:52]} 1/2-1/2

[Event "43rd Blackpool Chess Conference 2019"]
[Site "Blackpool"]
[Date "2019.03.09"]
[Round "3.8"]
[White "Sucikova, Svetlana"]
[Black "Merriman, John"]
[Result "0-1"]
[ECO "A06"]
[WhiteElo "2110"]
[BlackElo "2238"]
[Annotator "NA"]
[PlyCount "56"]
[EventDate "2019.03.08"]
[EventType "swiss"]
[EventCountry "ENG"]
[SourceTitle "playchess.com"]
[Source "ChessBase"]
[SourceQuality "1"]
[TimeControl "6600+10"]

1. e3 {[%emt 0:00:00]} d5 {[%emt 0:02:42]} 2. Nf3 {[%emt 0:00:00]} Nf6 {[%emt 0:00:21]} 3. b3 {[%emt 0:00:16]} Bg4 {[%emt 0:01:31]} 4. Bb2 {[%emt 0:00:39]} Nbd7 {[%emt 0:00:43]} 5. Be2 {[%emt 0:00:13]} c6 {[%emt 0:05:48]} 6. h3 {[%emt 0:01:28]} Bxf3 {[%emt 0:03:46]} 7. Bxf3 {[%emt 0:00:22]} e5 {[%emt 0:00:05]} 8. d3 {[%emt 0:00:49]} Bb4+ {[%emt 0:03:26]} 9. Nd2 {[%emt 0:00:25]} Qe7 {[%emt 0:03:44]} 10. O-O {[%emt 0:05:13]} e4 {[%emt 0:05:17]} 11. Be2 {[%emt 0:04:22]} O-O-O {[%emt 0:04:01]} 12. dxe4 {[%emt 0:03:34]} dxe4 {[%emt 0:00:31]} 13. Nc4 {[%emt 0:00:04]} Nb6 {[%emt 0:08:09]} 14. Qc1 {[%emt 0:03:03]} Nxc4 {[%emt 0:01:31]} 15. Bxc4 {[%emt 0:04:01]} Rd7 {[%emt 0:02:08]} 16. Bd4 {[%emt 0:04:14]} Kb8 {[%emt 0:00:33]} 17. a3 {[%emt 0:00:12]} Bd6 {[%emt 0:04:00]} 18. b4 {[%emt 0:01:38]} Bc7 {[%emt 0:08:05]} 19. Be2 {[%emt 0:05:55]} h5 {[%emt 0:00:47]} 20. Rd1 {[%emt 0:05:27]} Rd5 {[%emt 0:16:09]} 21. c4 {[%emt 0:03:59]} Rg5 {[%emt 0:00:54]} 22. c5 {[%emt 0:02:29]} Rh6 {[%emt 0:01:16]} 23. h4 {[%emt 0:09:56]} Rf5 {[%emt 0:00:19]} 24. b5 {[%emt 0:15:25]} Nd5 {[%emt 0:04:09]} 25. g3 {[%emt 0:05:10]} Rg6 {[%emt 0:00:59]} 26. Bf1 {[%emt 0:00:28]} Qxh4 {[%emt 0:05:03]} 27. Bg2 {[%emt 0:00:11]} Rxg3 {[%emt 0:00:53]} 28. f4 {[%emt 0:09:16]} exf3 {[%emt 0:01:04]} 0-1

[Event "43rd Blackpool Chess Conference 2019"]
[Site "Blackpool"]
[Date "2019.03.09"]
[Round "3.9"]
[White "Han, Yichen"]
[Black "Burnett, Jim"]
[Result "1-0"]
[ECO "C01"]
[WhiteElo "2190"]
[BlackElo "1996"]
[Annotator "NA"]
[PlyCount "85"]
[EventDate "2019.03.08"]
[EventType "swiss"]
[EventCountry "ENG"]
[SourceTitle "playchess.com"]
[Source "ChessBase"]
[SourceQuality "1"]
[TimeControl "6600+10"]

1. e4 {[%emt 0:15:11]} e6 {[%emt 0:00:00]} 2. d4 {[%emt 0:00:11]} d5 {[%emt 0:00:01]} 3. Nc3 {[%emt 0:00:03]} Bb4 {[%emt 0:00:05]} 4. exd5 {[%emt 0:00:19]} exd5 {[%emt 0:00:07]} 5. Bd3 {[%emt 0:00:12]} Ne7 {[%emt 0:00:38]} 6. Qh5 {[%emt 0:01:09]} Be6 {[%emt 0:01:57]} 7. Nf3 {[%emt 0:05:11]} Qd7 {[%emt 0:01:35]} 8. Ne5 {[%emt 0:04:01]} Qc8 {[%emt 0:01:31]} 9. O-O {[%emt 0:02:45]} Nd7 {[%emt 0:01:12]} 10. a3 {[%emt 0:08:00]} Bxc3 {[%emt 0:01:59]} 11. bxc3 {[%emt 0:00:16]} Nf6 {[%emt 0:05:25]} 12. Qe2 {[%emt 0:00:51]} h6 {[%emt 0:08:24]} 13. f4 {[%emt 0:02:58]} Bf5 {[%emt 0:01:34]} 14. Bxf5 {[%emt 0:03:45]} Qxf5 {[%emt 0:00:21]} 15. Qb5+ {[%emt 0:00:11]} c6 {[%emt 0:02:27]} 16. Qxb7 {[%emt 0:00:28]} Rc8 {[%emt 0:02:01]} 17. Qxa7 {[%emt 0:02:00]} Qxc2 {[%emt 0:01:38]} 18. Re1 {[%emt 0:06:07]} Ne4 {[%emt 0:02:20]} 19. Qd7+ {[%emt 0:00:19]} Kf8 {[%emt 0:00:06]} 20. Be3 {[%emt 0:00:05]} Nf6 {[%emt 0:01:21]} 21. Qb7 {[%emt 0:02:29]} Qxc3 {[%emt 0:00:49]} 22. a4 {[%emt 0:09:13]} Qa5 {[%emt 0:02:20]} 23. Rec1 {[%emt 0:01:50]} Rc7 {[%emt 0:02:17]} 24. Qb3 {[%emt 0:03:19]} Ne4 {[%emt 0:03:13]} 25. Rab1 {[%emt 0:00:46]} f6 {[%emt 0:00:28]} 26. Nd3 {[%emt 0:02:12]} Kf7 {[%emt 0:00:19]} 27. Nc5 {[%emt 0:05:42]} Nd6 {[%emt 0:01:54]} 28. Bf2 {[%emt 0:00:55]} Re8 {[%emt 0:05:15]} 29. Be1 {[%emt 0:01:13]} Qa8 {[%emt 0:00:27]} 30. Qd3 {[%emt 0:07:39]} Qc8 {[%emt 0:02:39]} 31. a5 {[%emt 0:01:20]} Ng6 {[%emt 0:01:18]} 32. Bg3 {[%emt 0:02:44]} Rce7 {[%emt 0:01:33]} 33. Qa6 {[%emt 0:01:20]} Nf5 {[%emt 0:02:26]} 34. Qxc8 {[%emt 0:00:46]} Rxc8 {[%emt 0:00:06]} 35. Rb4 {[%emt 0:00:38]} h5 {[%emt 0:00:38]} 36. Nd3 {[%emt 0:01:43]} Rcc7 {[%emt 0:03:18]} 37. a6 {[%emt 0:00:39]} h4 {[%emt 0:01:09]} 38. Bf2 {[%emt 0:00:35]} Nf8 {[%emt 0:00:52]} 39. Rb6 {[%emt 0:01:23]} Ne6 {[%emt 0:01:01]} 40. Rcxc6 {[%emt 0:01:27]} Nexd4 {[%emt 0:01:06]} 41. Rxc7 {[%emt 0:00:32]} Rxc7 {[%emt 0:00:02]} 42. Rb7 {[%emt 0:00:45]} Ne6 {[%emt 0:02:20]} 43. Bb6 {[%emt 0:01:40]} 1-0

[Event "43rd Blackpool Chess Conference 2019"]
[Site "Blackpool"]
[Date "2019.03.09"]
[Round "3.10"]
[White "Allis, Richard"]
[Black "Harkness, Bryan"]
[Result "1-0"]
[ECO "A48"]
[WhiteElo "2052"]
[BlackElo "1935"]
[Annotator "NA"]
[PlyCount "71"]
[EventDate "2019.03.08"]
[EventType "swiss"]
[EventCountry "ENG"]
[SourceTitle "playchess.com"]
[Source "ChessBase"]
[SourceQuality "1"]
[TimeControl "6600+10"]

1. d4 {[%emt 0:00:00]} Nf6 {[%emt 0:00:03]} 2. Nf3 {[%emt 0:00:00]} g6 {[%emt 0:00:17]} 3. Bg5 {[%emt 0:00:02]} Ne4 {[%emt 0:02:41]} 4. Bf4 {[%emt 0:00:19]} Bg7 {[%emt 0:00:19]} 5. Nbd2 {[%emt 0:00:14]} d5 {[%emt 0:06:15]} 6. c3 {[%emt 0:00:18]} Nxd2 {[%emt 0:07:39]} 7. Qxd2 {[%emt 0:00:38]} Nd7 {[%emt 0:00:23]} 8. e3 {[%emt 0:00:30]} O-O {[%emt 0:00:18]} 9. Bd3 {[%emt 0:00:24]} Re8 {[%emt 0:09:50]} 10. O-O {[%emt 0:00:50]} e5 {[%emt 0:00:55]} 11. dxe5 {[%emt 0:00:35]} Nxe5 {[%emt 0:00:10]} 12. Nxe5 {[%emt 0:00:28]} Bxe5 {[%emt 0:00:11]} 13. Bxe5 {[%emt 0:00:04]} Rxe5 {[%emt 0:00:07]} 14. Bc2 {[%emt 0:00:09]} Qh4 {[%emt 0:10:21]} 15. Qd4 {[%emt 0:00:16]} Qxd4 {[%emt 0:00:24]} 16. cxd4 {[%emt 0:00:08]} Re7 {[%emt 0:00:20]} 17. b4 {[%emt 0:00:12]} c6 {[%emt 0:00:30]} 18. Rfb1 {[%emt 0:00:47]} Rc7 {[%emt 0:18:35]} 19. Bd3 {[%emt 0:01:16]} a6 {[%emt 0:00:17]} 20. a4 {[%emt 0:00:30]} Kf8 {[%emt 0:00:31]} 21. Rc1 {[%emt 0:00:26]} Ke7 {[%emt 0:00:38]} 22. f3 {[%emt 0:00:41]} Kd6 {[%emt 0:04:11]} 23. e4 {[%emt 0:01:48]} f6 {[%emt 0:00:24]} 24. Kf2 {[%emt 0:02:35]} Bd7 {[%emt 0:00:51]} 25. h4 {[%emt 0:00:57]} Be8 {[%emt 0:02:57]} 26. g4 {[%emt 0:00:12]} h6 {[%emt 0:02:49]} 27. g5 {[%emt 0:00:23]} dxe4 {[%emt 0:08:14]} 28. fxe4 {[%emt 0:00:22]} fxg5 {[%emt 0:00:38]} 29. e5+ {[%emt 0:00:52]} Ke6 {[%emt 0:01:00]} 30. Bc4+ {[%emt 0:00:13]} Kf5 {[%emt 0:03:09]} 31. Ke3 {[%emt 0:00:18]} Kg4 {[%emt 0:02:56]} 32. Be6+ {[%emt 0:00:48]} Kh5 {[%emt 0:02:24]} 33. hxg5 {[%emt 0:00:06]} Kxg5 {[%emt 0:00:14]} 34. Rg1+ {[%emt 0:00:04]} Kh4 {[%emt 0:00:06]} 35. Rh1+ {[%emt 0:00:06]} Kg3 {[%emt 0:00:06]} 36. Rag1# {[%emt 1:38:29]} 1-0